bitfinex/quotes_BTCUSD_20220204
["timestamp","ask_amount","ask_price","bid_price","bid_amount"]
[1643972070603,1.46636509,37935.0,37934.0,1.24828304]
[1643972070802,1.11944809,37935.0,37934.0,1.29828304]
[1643972071852,1.46636509,37935.0,37934.0,1.29828304]
[1643972072052,1.22419709,37935.0,37934.0,1.29828304]
[1643972072254,1.46636509,37935.0,37934.0,1.29828304]
[1643972072453,1.22419709,37935.0,37934.0,1.29828304]
[1643972072854,1.46636509,37935.0,37934.0,1.29828304]
[1643972073153,1.11944809,37935.0,37934.0,1.29828304]
[1643972073952,1.46636509,37935.0,37934.0,1.29828304]
[1643972074152,0.46583934,37935.0,37934.0,1.29828304]
[1643972074553,0.68127147,37935.0,37934.0,1.29828304]
[1643972074753,0.5,37935.0,37934.0,1.29828304]
[1643972075007,0.68127147,37935.0,37934.0,1.29828304]
[1643972075210,1.12686,37935.0,37934.0,1.29828304]
[1643972075407,1.06596347,37935.0,37934.0,1.29828304]
[1643972075610,1.57232274,37935.0,37934.0,1.29828304]
[1643972075807,1.22540574,37935.0,37934.0,1.29828304]
[1643972076006,1.57232274,37935.0,37934.0,1.29828304]
[1643972076209,1.22540574,37935.0,37934.0,1.29828304]
[1643972076406,1.57232274,37935.0,37934.0,1.29821471]
[1643972076610,1.33015474,37935.0,37934.0,1.29821471]
[1643972076808,1.22540574,37935.0,37934.0,1.29821471]
[1643972077007,0.94546274,37935.0,37934.0,1.29821471]
[1643972078213,0.44546274,37935.0,37934.0,1.29821471]
[1643972078651,0.40503648,37936.0,37934.0,1.29821471]
[1643972078652,0.64720448,37936.0,37934.0,1.29821471]
[1643972078852,0.40503648,37936.0,37934.0,1.29821471]
[1643972079153,0.28044677,37935.0,37934.0,1.29821471]
[1643972079552,0.62736377,37935.0,37934.0,1.29821471]
[1643972079754,0.28044677,37935.0,37934.0,1.29821471]
[1643972079956,0.62736377,37935.0,37934.0,1.29821471]
[1643972080156,0.56646724,37935.0,37934.0,1.29821471]
[1643972080455,0.62736377,37935.0,37934.0,1.29821471]
[1643972080654,0.46171824,37935.0,37934.0,1.29821471]
[1643972080854,0.33294677,37935.0,37934.0,1.29821471]
[1643972081053,0.51421824,37935.0,37934.0,1.29821471]
[1643972081255,0.86113524,37935.0,37934.0,1.29821471]
[1643972081456,1.06896724,37935.0,37934.0,1.29821471]
[1643972081754,0.96421824,37935.0,37934.0,1.29821471]
[1643972082410,1.05798773,37935.0,37934.0,1.29821471]
[1643972083107,1.40490473,37935.0,37934.0,1.29821471]
[1643972083304,1.05798773,37935.0,37934.0,1.29821471]
[1643972085110,0.51421824,37935.0,37934.0,1.29821471]
[1643972085511,0.33294677,37935.0,37934.0,1.29821471]
[1643972085811,0.51421824,37935.0,37934.0,1.29802684]
[1643972086011,0.33294677,37935.0,37934.0,1.29802684]
[1643972086252,0.51421824,37935.0,37934.0,1.29802684]
[1643972086455,0.33294677,37935.0,37934.0,1.29802684]
[1643972086655,0.51421824,37935.0,37934.0,1.29802684]
[1643972087255,1.16421824,37935.0,37934.0,1.29802684]
[1643972087759,1.51113524,37935.0,37934.0,1.24809517]
[1643972087956,1.6430129,37935.0,37934.0,1.24809517]
[1643972088357,1.0430129,37935.0,37934.0,1.24809517]
[1643972091804,0.76256613,37935.0,37934.0,1.24809517]
[1643972092205,0.98129466,37935.0,37934.0,1.24809517]
[1643972092603,1.16256613,37935.0,37934.0,1.24809517]
[1643972093206,0.76256613,37935.0,37934.0,1.24809517]
[1643972093654,0.58129466,37935.0,37934.0,1.24809517]
[1643972094555,0.68129466,37935.0,37934.0,1.24809517]
[1643972096557,0.81006613,37935.0,37934.0,1.24809517]
[1643972097059,0.62879466,37935.0,37934.0,1.24809517]
[1643972099113,0.62879466,37935.0,37934.0,1.29801631]
[1643972099409,0.562842,37935.0,37934.0,1.29801631]
[1643972099609,0.562842,37935.0,37934.0,1.34801631]
[1643972099809,0.562842,37935.0,37934.0,1.29801631]
[1643972100010,0.562842,37935.0,37934.0,1.34801631]
[1643972100209,0.115925,37935.0,37934.0,1.34801631]
[1643972100410,0.115925,37935.0,37934.0,1.29801631]
[1643972100612,0.065925,37935.0,37934.0,1.34801631]
[1643972100811,0.18127147,37941.0,37934.0,1.49723631]
[1643972101010,0.18127147,37941.0,37940.0,0.05]
[1643972101266,0.3925663,37949.0,37940.0,0.40801302]
[1643972101457,0.01019868,37950.0,37948.0,0.05]
[1643972101659,0.346917,37949.0,37948.0,0.39681894]
[1643972101958,0.05281937,37955.0,37949.0,0.346917]
[1643972101959,0.00408704,37952.0,37949.0,0.346917]
[1643972102157,0.19305767,37957.0,37949.0,0.346917]
[1643972102158,0.18127147,37957.0,37952.0,0.65]
[1643972102356,0.001,37961.0,37956.0,0.05]
[1643972102556,0.001,37961.0,37960.0,0.05]
[1643972102557,0.18220325,37961.0,37960.0,0.05]
[1643972102755,0.18220325,37961.0,37960.0,0.76122489]
[1643972102756,0.0006465,37961.0,37960.0,0.76122489]
[1643972102957,0.0006465,37961.0,37960.0,0.41430789]
[1643972103156,0.6006465,37961.0,37960.0,0.18007153]
[1643972103558,0.62870458,37961.0,37960.0,0.18007153]
[1643972103760,0.62870458,37961.0,37960.0,0.11206438]
[1643972103761,0.6006465,37961.0,37960.0,0.11206438]
[1643972104057,0.6006465,37961.0,37960.0,0.03199285]
[1643972104257,0.66301883,37961.0,37951.0,0.25621764]
[1643972104457,0.065891,37956.0,37951.0,0.25621764]
[1643972104657,0.065891,37956.0,37955.0,0.05]
[1643972104923,0.065891,37956.0,37951.0,0.25621764]
[1643972105117,0.065891,37956.0,37955.0,0.05]
[1643972105518,0.065891,37956.0,37953.0,0.05]
[1643972105519,0.19185525,37955.0,37953.0,0.05]
[1643972105719,0.33629549,37954.0,37951.0,0.05]
[1643972105917,0.43629549,37954.0,37949.0,0.19767]
[1643972106117,0.48629549,37954.0,37951.0,0.05]
[1643972106320,0.30498577,37952.0,37951.0,0.05]
[1643972106817,0.45498577,37952.0,37950.0,0.00102575]
[1643972107618,0.45498577,37952.0,37949.0,0.09767]
[1643972107819,0.45498577,37952.0,37949.0,0.09869576]
[1643972108220,0.33629549,37951.0,37949.0,0.14869576]
[1643972108419,1.6025,37950.0,37949.0,0.14869576]
[1643972108656,1.6025,37950.0,37949.0,0.14767]
[1643972108960,2.03879549,37950.0,37949.0,0.10867768]
[1643972109257,2.03879549,37950.0,37949.0,0.09767]
[1643972109258,2.15471849,37950.0,37949.0,0.09767]
[1643972109456,1.818423,37950.0,37949.0,0.09767]
[1643972109656,2.15471849,37950.0,37949.0,0.09767]
[1643972110661,0.60471849,37950.0,37949.0,0.09767]
[1643972111264,0.268423,37950.0,37949.0,0.09767]
[1643972111658,0.168423,37950.0,37949.0,0.09767]
[1643972113107,0.168423,37950.0,37948.0,0.05102578]
[1643972113308,0.26611271,37949.0,37948.0,0.05102578]
[1643972113508,0.115923,37950.0,37947.0,0.05]
[1643972113709,0.215923,37950.0,37947.0,0.00102579]
[1643972113908,0.115923,37950.0,37947.0,0.00102579]
[1643972114711,0.23056656,37949.0,37948.0,0.05]
[1643972114912,0.115923,37950.0,37948.0,0.05]
[1643972115114,0.0010256,37954.0,37949.0,0.25847166]
[1643972115316,0.0010256,37954.0,37952.0,0.05]
[1643972115511,0.0010256,37954.0,37948.0,0.08727]
[1643972115712,0.0010256,37954.0,37949.0,0.27510243]
[1643972115912,0.25062714,37957.0,37950.0,0.26778208]
[1643972116161,0.00102563,37954.0,37950.0,0.26880783]
[1643972116362,0.00102563,37954.0,37950.0,0.38469483]
[1643972116962,0.00102563,37954.0,37953.0,0.05]
[1643972117163,0.30062714,37957.0,37953.0,0.13396325]
[1643972117363,0.00095641,37954.0,37953.0,0.18396325]
[1643972118061,0.00095641,37954.0,37953.0,0.13396325]
[1643972118261,0.00095641,37954.0,37953.0,0.18396325]
[1643972118461,0.40062714,37957.0,37953.0,0.18396325]
[1643972118661,0.15,37957.0,37956.0,0.05]
[1643972118962,0.05,37957.0,37956.0,0.05]
[1643972119162,0.83940122,37959.0,37956.0,0.05]
[1643972119363,0.83940122,37959.0,37958.0,0.05]
[1643972119561,0.83940122,37959.0,37958.0,0.04315847]
[1643972119760,0.84719909,37959.0,37958.0,0.04315847]
[1643972120011,1.11048424,37959.0,37958.0,0.04315847]
[1643972120313,1.11048424,37959.0,37954.0,0.04315847]
[1643972120516,0.00684153,37955.0,37954.0,0.04315847]
[1643972120710,0.00684153,37955.0,37953.0,0.13396325]
[1643972120711,0.41959653,37955.0,37953.0,0.13396325]
[1643972121111,0.41959653,37955.0,37954.0,0.04315847]
[1643972121112,0.46959653,37955.0,37954.0,0.04315847]
[1643972123676,0.46959653,37955.0,37953.0,0.05]
[1643972123876,0.62209653,37955.0,37950.0,0.04411968]
[1643972124083,0.80684153,37951.0,37950.0,0.04411968]
[1643972124276,1.21961053,37951.0,37950.0,0.04315847]
[1643972124480,1.26961053,37951.0,37949.0,0.02199466]
[1643972124675,0.346858,37950.0,37949.0,0.02199466]
[1643972125277,0.61489866,37950.0,37949.0,0.02199466]
[1643972125476,0.61489866,37950.0,37949.0,0.02103347]
[1643972125879,0.61489866,37950.0,37948.0,0.00096089]
[1643972126679,0.61489866,37950.0,37945.0,0.1]
[1643972126982,0.62174019,37950.0,37949.0,0.04315847]
[1643972127804,0.62174019,37950.0,37947.0,0.0009609]
[1643972128004,0.62174019,37950.0,37946.0,0.09128523]
[1643972128205,0.62174019,37950.0,37948.0,0.00096089]
[1643972129106,0.62174019,37950.0,37946.0,0.09128523]
[1643972129307,0.62174019,37950.0,37947.0,0.00096092]
[1643972129708,0.68765134,37950.0,37947.0,0.00096092]
[1643972130208,0.68765134,37950.0,37947.0,0.04411939]
[1643972130407,0.68765134,37950.0,37946.0,0.09128523]
[1643972130607,0.065912,37948.0,37947.0,0.00096093]
[1643972130808,0.615912,37948.0,37947.0,0.00096093]
[1643972131007,0.41277,37948.0,37947.0,0.00096093]
[1643972131461,0.93237737,37948.0,37947.0,0.00096093]
[1643972131660,0.93237737,37948.0,37941.0,0.02008703]
[1643972131661,0.06592447,37947.0,37941.0,0.02008703]
[1643972131860,1.85227317,37947.0,37946.0,0.00096094]
[1643972132062,1.9116147,37947.0,37946.0,0.00096094]
[1643972132260,2.0616147,37947.0,37946.0,0.00083522]
[1643972132561,2.37332783,37947.0,37946.0,0.00083522]
[1643972132760,2.37332783,37947.0,37942.0,0.02056891]
[1643972132960,0.31968688,37946.0,37942.0,0.02056891]
[1643972133160,0.34832793,37943.0,37942.0,0.02056891]
[1643972133360,0.83304672,37943.0,37942.0,0.02056891]
[1643972133961,0.83304672,37943.0,37938.0,0.04315847]
[1643972134162,0.00684153,37939.0,37938.0,0.04315847]
[1643972135009,0.21592548,37941.0,37938.0,0.04315847]
[1643972135208,0.21592548,37941.0,37940.0,0.04315847]
[1643972135209,0.15,37941.0,37940.0,0.04315847]
[1643972135711,0.05,37941.0,37940.0,0.04315847]
[1643972135907,0.4391104,37943.0,37940.0,0.04315847]
[1643972136106,0.3391104,37943.0,37940.0,0.04315847]
[1643972136307,0.3391104,37943.0,37938.0,0.04315847]
[1643972136308,0.00684153,37941.0,37938.0,0.04315847]
[1643972136508,0.4391104,37943.0,37940.0,0.00053228]
[1643972136710,0.4391104,37943.0,37942.0,0.07817408]
[1643972136907,0.7859684,37943.0,37942.0,0.07817408]
[1643972137112,0.549358,37943.0,37942.0,0.07817408]
[1643972137508,0.20934153,37943.0,37942.0,0.07817408]
[1643972137710,0.1025,37943.0,37942.0,0.07817408]
[1643972138007,0.0525,37943.0,37942.0,0.07817408]
[1643972138209,0.0525,37943.0,37942.0,0.12817408]
[1643972139866,0.0525,37943.0,37942.0,0.07817408]
[1643972140867,0.0525,37943.0,37942.0,0.12817408]
[1643972142445,0.065911,37945.0,37942.0,0.49653663]
[1643972142635,0.065911,37945.0,37944.0,0.04315847]
[1643972143336,0.065911,37945.0,37944.0,0.2892]
[1643972144335,0.07275253,37945.0,37944.0,0.2892]
[1643972144537,0.41961053,37945.0,37944.0,0.2892]
[1643972144740,0.41961053,37945.0,37944.0,0.04315847]
[1643972145738,0.41961053,37945.0,37943.0,0.0009585]
[1643972145739,0.346858,37944.0,37943.0,0.0009585]
[1643972145939,0.346858,37944.0,37939.0,0.01972462]
[1643972145940,0.446858,37944.0,37939.0,0.01972462]
[1643972146165,0.26173339,37940.0,37939.0,0.01972462]
[1643972146366,0.26173339,37940.0,37939.0,0.06288309]
[1643972147067,0.26173339,37940.0,37939.0,0.15978834]
[1643972147270,0.065923,37940.0,37939.0,0.15978834]
[1643972147967,0.065923,37940.0,37939.0,0.09690525]
[1643972148168,0.07276453,37940.0,37939.0,0.09690525]
[1643972148569,0.31002524,37940.0,37939.0,0.09690525]
[1643972148766,0.41002524,37940.0,37939.0,0.09690525]
[1643972149167,0.165923,37940.0,37939.0,0.09690525]
[1643972149371,0.95149281,37948.0,37939.0,0.19006372]
[1643972149372,0.065909,37943.0,37939.0,0.19006372]
[1643972149567,0.00684153,37942.0,37939.0,0.19006372]
[1643972149767,0.065909,37943.0,37939.0,0.19006372]
[1643972150012,0.115909,37943.0,37939.0,0.19006372]
[1643972150218,0.22813893,37942.0,37939.0,0.19006372]
[1643972150409,0.23498046,37942.0,37939.0,0.19006372]
[1643972150613,0.22813893,37942.0,37939.0,0.19006372]
[1643972150817,0.065909,37943.0,37935.0,0.25949976]
[1643972150818,0.13734057,37937.0,37935.0,0.25949976]
[1643972151012,0.13734057,37937.0,37936.0,0.346858]
[1643972151512,0.13734057,37937.0,37935.0,0.35343055]
[1643972151810,0.0434961,37936.0,37935.0,0.35343055]
[1643972152009,0.30342448,37936.0,37935.0,0.07447186]
[1643972152409,0.35342448,37936.0,37935.0,0.07447186]
[1643972152713,0.35342448,37936.0,37934.0,0.92792972]
[1643972152908,0.05,37935.0,37934.0,0.92792972]
[1643972153109,0.05,37935.0,37934.0,0.53145617]
[1643972153311,0.396858,37935.0,37934.0,0.60726342]
[1643972153512,0.396858,37935.0,37934.0,0.21173742]
[1643972154773,0.446858,37935.0,37934.0,0.21173742]
[1643972157816,0.346858,37935.0,37934.0,0.21173742]
[1643972158021,0.065909,37936.0,37934.0,0.55859542]
[1643972158217,0.065909,37936.0,37934.0,0.21173742]
[1643972158417,0.065909,37936.0,37935.0,0.346858]
[1643972160019,0.115909,37936.0,37935.0,0.346858]
[1643972160221,0.115909,37936.0,37934.0,0.21220519]
[1643972160420,0.115909,37936.0,37935.0,0.346858]
[1643972160421,0.065909,37936.0,37935.0,0.346858]
[1643972160627,0.412767,37936.0,37934.0,0.2122053]
[1643972160819,0.05,37935.0,37934.0,0.2122053]
[1643972161257,0.115909,37936.0,37934.0,0.2122053]
[1643972161459,0.346858,37935.0,37934.0,0.2122053]
[1643972161658,0.065909,37936.0,37934.0,0.21173742]
[1643972161860,0.115909,37936.0,37934.0,0.21173742]
[1643972162063,0.115909,37936.0,37934.0,0.55859542]
[1643972162663,0.065909,37936.0,37934.0,0.55859542]
[1643972162862,0.065909,37936.0,37935.0,0.23873043]
[1643972163062,0.065909,37936.0,37935.0,0.58558843]
[1643972165011,0.08821422,37937.0,37935.0,0.58558843]
[1643972165212,0.08821422,37937.0,37936.0,0.346858]
[1643972165414,0.08821422,37937.0,37936.0,0.168804]
[1643972165611,0.08821422,37937.0,37936.0,0.346858]
[1643972165814,0.13821422,37937.0,37936.0,0.168804]
[1643972166012,0.13821422,37937.0,37936.0,0.346858]
[1643972166213,0.13821422,37937.0,37936.0,0.168804]
[1643972166412,0.13821422,37937.0,37936.0,0.346858]
[1643972166713,0.13821422,37937.0,37935.0,0.58658258]
[1643972167514,0.17862697,37937.0,37935.0,0.58558843]
[1643972167712,0.13821422,37937.0,37935.0,0.58558843]
[1643972168658,0.13821422,37937.0,37935.0,0.23873043]
[1643972168860,0.08821422,37937.0,37935.0,0.23873043]
[1643972169261,0.08821422,37937.0,37935.0,0.58558843]
[1643972171267,0.12461089,37937.0,37935.0,0.58558843]
[1643972171865,0.12461089,37937.0,37935.0,0.23873043]
[1643972172513,0.25274064,37939.0,37935.0,0.23873043]
[1643972172710,0.0316232,37939.0,37936.0,0.346858]
[1643972172913,0.04879664,37942.0,37936.0,0.346858]
[1643972173112,0.065909,37938.0,37936.0,0.346858]
[1643972173421,0.065909,37938.0,37937.0,0.25666736]
[1643972173614,0.065909,37938.0,37937.0,0.30916736]
[1643972173812,0.0011,37944.0,37937.0,0.75602536]
[1643972174012,0.0011,37944.0,37941.0,0.46331263]
[1643972174213,0.131769,37943.0,37942.0,0.44504664]
[1643972174413,0.131769,37943.0,37942.0,0.09818864]
[1643972175212,0.131769,37943.0,37942.0,0.44504664]
[1643972175414,0.131769,37943.0,37942.0,0.09818864]
[1643972175616,0.131769,37943.0,37941.0,0.16962279]
[1643972175617,0.04130436,37942.0,37941.0,0.34781879]
[1643972175815,0.33857468,37942.0,37941.0,0.00096079]
[1643972176015,0.73543268,37942.0,37938.0,0.02118975]
[1643972176287,0.73543268,37942.0,37940.0,0.0009608]
[1643972176288,0.38857468,37942.0,37940.0,0.0009608]
[1643972176485,0.55480391,37941.0,37940.0,0.0009608]
[1643972176685,0.04004537,37940.0,37938.0,0.02118975]
[1643972176988,0.346858,37939.0,37938.0,0.02118975]
[1643972177387,0.30000357,37936.0,37935.0,0.346858]
[1643972177587,0.5317475,37936.0,37935.0,0.346858]
[1643972177787,0.5317475,37936.0,37934.0,0.70925927]
[1643972177788,0.5704126,37936.0,37934.0,0.70925927]
[1643972178489,0.6635755,37936.0,37934.0,0.70925927]
[1643972178688,0.04263965,37935.0,37934.0,0.70925927]
[1643972178892,0.6635755,37936.0,37934.0,0.96573773]
[1643972179088,0.6635755,37936.0,37934.0,0.61887973]
[1643972179290,0.47287477,37936.0,37935.0,0.896858]
[1643972179488,0.47287477,37936.0,37935.0,1.03267934]
[1643972179489,0.1728712,37936.0,37935.0,1.03267934]
[1643972179688,0.1728712,37936.0,37935.0,1.47953734]
[1643972179690,0.131828,37936.0,37935.0,1.47953734]
[1643972179915,0.131828,37936.0,37935.0,1.03267934]
[1643972180713,0.131828,37936.0,37935.0,0.2264711]
[1643972181214,0.131828,37936.0,37935.0,0.5733291]
[1643972181422,0.35644665,37936.0,37935.0,0.168829]
[1643972181613,0.35644665,37936.0,37935.0,0.5733281]
[1643972181814,0.35644665,37936.0,37935.0,0.3953011]
[1643972182013,0.35644665,37936.0,37935.0,0.2264711]
[1643972182216,0.35644665,37936.0,37935.0,0.5733291]
[1643972182615,0.35644665,37936.0,37935.0,0.2264711]
[1643972183316,0.35644665,37936.0,37935.0,0.5733291]
[1643972183516,0.35644665,37936.0,37935.0,0.2264711]
[1643972183966,0.35644665,37936.0,37935.0,0.5733291]
[1643972184364,0.35644665,37936.0,37935.0,0.168829]
[1643972184564,0.35644665,37936.0,37934.0,0.48374829]
[1643972185566,0.35644665,37936.0,37934.0,0.48278817]
[1643972190515,0.35644665,37936.0,37935.0,0.2264711]
[1643972191162,0.35644665,37936.0,37934.0,0.30476417]
[1643972191362,0.35644665,37936.0,37935.0,0.346858]
[1643972191960,0.35644665,37936.0,37935.0,0.168829]
[1643972192159,0.35644665,37936.0,37935.0,0.346858]
[1643972192759,0.35644665,37936.0,37934.0,0.48278817]
[1643972192959,0.35644665,37936.0,37934.0,0.48374838]
[1643972193963,0.35644665,37936.0,37934.0,0.48278817]
[1643972194266,0.131828,37936.0,37935.0,0.2264711]
[1643972195312,0.37556141,37936.0,37935.0,0.2264711]
[1643972195712,0.37556141,37936.0,37935.0,0.5733291]
[1643972195914,0.37556141,37936.0,37935.0,0.2264711]
[1643972196113,0.37556141,37936.0,37935.0,0.5733291]
[1643972196313,0.37556141,37936.0,37934.0,0.70925927]
[1643972196513,0.37556141,37936.0,37934.0,0.71021948]
[1643972197116,0.37556141,37936.0,37934.0,0.53219548]
[1643972197313,0.37556141,37936.0,37934.0,0.71021948]
[1643972197515,0.37556141,37936.0,37935.0,0.4]
[1643972197715,0.37556141,37936.0,37935.0,0.6264711]
[1643972197916,0.37556141,37936.0,37935.0,0.2264711]
[1643972199469,0.37556141,37936.0,37935.0,0.5733291]
[1643972199669,0.37556141,37936.0,37935.0,0.2264711]
[1643972200067,0.37556141,37936.0,37935.0,0.5733291]
[1643972200267,0.37556141,37936.0,37935.0,0.2264711]
[1643972200668,0.37556141,37936.0,37935.0,0.5733291]
[1643972201071,0.37556141,37936.0,37935.0,0.2264711]
[1643972201470,0.37556141,37936.0,37935.0,0.5733291]
[1643972201768,0.37556141,37936.0,37935.0,0.2264711]
[1643972202168,0.37556141,37936.0,37935.0,0.5733291]
[1643972202430,0.37556141,37936.0,37934.0,0.70925927]
[1643972202431,0.42556141,37936.0,37934.0,0.70925927]
[1643972202616,0.42556141,37936.0,37934.0,0.13689038]
[1643972202617,0.05,37936.0,37934.0,0.13689038]
[1643972202816,0.03947944,37935.0,37934.0,0.13689038]
[1643972203015,0.10540144,37935.0,37934.0,0.13689038]
[1643972203417,0.32866506,37935.0,37934.0,0.13689038]
[1643972203619,0.46051806,37935.0,37932.0,0.060355]
[1643972203818,0.396858,37934.0,37933.0,0.00096022]
[1643972204018,0.48993131,37934.0,37933.0,0.00096022]
[1643972204718,0.48993131,37934.0,37928.0,0.2264711]
[1643972204719,0.29832873,37933.0,37928.0,0.2264711]
[1643972204920,0.52286438,37932.0,37931.0,0.00019044]
[1643972205119,0.52286438,37932.0,37927.0,0.00019044]
[1643972205120,0.412793,37931.0,37927.0,0.00019044]
[1643972205324,0.412793,37931.0,37926.0,0.0031]
[1643972205325,0.2,37928.0,37926.0,0.0031]
[1643972205524,0.58823711,37927.0,37926.0,0.0031]
[1643972205920,0.09306483,37924.0,37920.0,0.2284711]
[1643972206166,0.09306483,37924.0,37920.0,0.002]
[1643972206168,0.05,37921.0,37920.0,0.002]
[1643972206366,0.09442844,37921.0,37920.0,0.002]
[1643972206566,0.14442844,37921.0,37920.0,0.002]
[1643972206766,0.40593164,37921.0,37920.0,0.002]
[1643972207467,1.02868976,37921.0,37920.0,0.002]
[1643972207867,0.75278964,37921.0,37920.0,0.002]
[1643972208169,1.02189582,37921.0,37920.0,0.002]
[1643972208366,0.75278964,37921.0,37920.0,0.002]
[1643972210014,0.68982964,37921.0,37920.0,0.002]
[1643972210216,0.73982964,37921.0,37920.0,0.002]
[1643972211015,0.68982964,37921.0,37920.0,0.002]
[1643972211216,0.73982964,37921.0,37920.0,0.002]
[1643972212122,0.68982964,37921.0,37920.0,0.002]
[1643972212518,0.73982964,37921.0,37920.0,0.002]
[1643972213763,0.79232964,37921.0,37920.0,0.002]
[1643972214965,1.06968943,37921.0,37920.0,0.002]
[1643972215167,1.17271339,37921.0,37920.0,0.002]
[1643972215366,0.478789,37919.0,37913.0,0.0040958]
[1643972215565,0.05,37914.0,37911.0,0.01]
[1643972215767,0.05,37912.0,37911.0,0.01]
[1643972215967,0.05,37912.0,37908.0,0.003]
[1643972215968,0.346858,37910.0,37908.0,0.003]
[1643972216166,0.05,37909.0,37908.0,0.003]
[1643972216366,0.05,37909.0,37907.0,0.002]
[1643972216367,0.1025,37909.0,37907.0,0.002]
[1643972216565,0.1025,37909.0,37901.0,0.01]
[1643972216566,0.346858,37908.0,37901.0,0.01]
[1643972216765,0.168481,37909.0,37901.0,0.01]
[1643972216766,0.4,37902.0,37901.0,0.01]
[1643972216966,0.4,37902.0,37893.0,0.28309719]
[1643972216967,0.73411905,37900.0,37893.0,0.22647775]
[1643972217167,0.05,37894.0,37891.0,0.01]
[1643972217433,0.346858,37891.0,37882.0,0.22647775]
[1643972217623,0.05,37884.0,37883.0,0.22647775]
[1643972217822,0.05,37884.0,37881.0,0.06]
[1643972217823,0.26302314,37884.0,37881.0,0.06]
[1643972218024,0.31552314,37884.0,37881.0,0.06]
[1643972218223,0.346858,37883.0,37881.0,0.06]
[1643972218423,0.346858,37883.0,37881.0,0.0282]
[1643972218622,0.368658,37883.0,37881.0,0.0282]
[1643972218824,0.24810905,37882.0,37881.0,0.0282]
[1643972219023,0.59496705,37882.0,37881.0,0.0282]
[1643972219224,0.29810905,37882.0,37881.0,0.0282]
[1643972219425,0.346858,37881.0,37880.0,0.00102357]
[1643972219626,0.346858,37881.0,37880.0,0.02922357]
[1643972219827,0.0525,37884.0,37880.0,0.37608157]
[1643972220029,0.0525,37884.0,37883.0,1.1282]
[1643972220227,0.0525,37884.0,37883.0,1.475058]
[1643972220427,0.0525,37884.0,37883.0,1.53325938]
[1643972220630,0.0525,37884.0,37883.0,0.42995053]
[1643972220826,0.0525,37884.0,37883.0,2.17680853]
[1643972221027,0.27592018,37888.0,37882.0,0.00102354]
[1643972221270,0.347195,37887.0,37882.0,0.00102354]
[1643972221666,0.347195,37887.0,37876.0,0.05]
[1643972221667,0.332195,37887.0,37876.0,0.05]
[1643972221866,0.332195,37887.0,37883.0,0.00102353]
[1643972222067,0.41917724,37885.0,37883.0,0.00102353]
[1643972222267,0.71722924,37885.0,37884.0,0.10443586]
[1643972222467,0.87095045,37885.0,37884.0,0.10443586]
[1643972222670,0.87095045,37885.0,37884.0,0.10462626]
[1643972223168,0.87095045,37885.0,37884.0,0.10443586]
[1643972223669,0.87095045,37885.0,37884.0,0.10462626]
[1643972224268,0.87095045,37885.0,37884.0,0.10443586]
[1643972224567,0.87095045,37885.0,37884.0,0.10462626]
[1643972225022,0.595245,37885.0,37884.0,0.10462626]
[1643972225229,0.347193,37885.0,37884.0,0.10462626]
[1643972225423,0.065996,37889.0,37884.0,0.45181926]
[1643972225623,0.065996,37889.0,37888.0,0.05]
[1643972226123,0.413189,37889.0,37888.0,0.05]
[1643972226323,0.413189,37889.0,37885.0,0.0001904]
[1643972226324,0.065996,37889.0,37885.0,0.0001904]
[1643972226527,0.065996,37889.0,37887.0,0.00102347]
[1643972226528,0.347193,37888.0,37887.0,0.00102347]
[1643972226726,0.447193,37888.0,37887.0,0.00102347]
[1643972227324,0.93573396,37888.0,37887.0,0.00102347]
[1643972227525,0.93573396,37888.0,37885.0,0.09019772]
[1643972227729,0.397193,37886.0,37885.0,0.09019772]
[1643972229469,0.397193,37886.0,37885.0,0.09038812]
[1643972230273,0.397193,37886.0,37885.0,0.09019772]
[1643972230469,0.397193,37886.0,37884.0,0.00102351]
[1643972230769,0.397193,37885.0,37884.0,0.00121391]
[1643972231269,0.397193,37885.0,37884.0,0.0001904]
[1643972231471,0.397193,37885.0,37883.0,0.31102353]
[1643972231668,0.347193,37884.0,37883.0,0.39704403]
[1643972232421,0.347193,37884.0,37883.0,0.31]
[1643972232615,0.347196,37884.0,37883.0,0.31]
[1643972232816,0.347196,37884.0,37883.0,0.3101904]
[1643972233915,0.347196,37884.0,37876.0,0.0021106]
[1643972233916,0.25187823,37877.0,37876.0,0.0021106]
[1643972234115,0.104861,37877.0,37876.0,0.0021106]
[1643972234315,0.154861,37877.0,37876.0,0.0021106]
[1643972234514,0.204861,37877.0,37876.0,0.0021106]
[1643972234715,0.204861,37877.0,37874.0,0.0471106]
[1643972234914,0.41322359,37876.0,37874.0,0.0471106]
[1643972235116,0.41322359,37876.0,37874.0,0.04730103]
[1643972235117,0.22352604,37875.0,37874.0,0.04730103]
[1643972235317,0.42838704,37875.0,37874.0,0.04730103]
[1643972235515,0.42838704,37875.0,37874.0,0.00019043]
[1643972235717,0.347196,37874.0,37873.0,0.00019043]
[1643972235914,0.347196,37874.0,37872.0,0.01948895]
[1643972236167,0.0028894,37873.0,37872.0,0.01948895]
[1643972236365,0.1077504,37873.0,37872.0,0.00148632]
[1643972236565,0.1577504,37873.0,37872.0,0.00148632]
[1643972237565,0.1577504,37873.0,37872.0,0.04859692]
[1643972237969,0.226338,37875.0,37872.0,0.05148632]
[1643972238166,0.347184,37874.0,37872.0,0.00148632]
[1643972238366,0.41321505,37874.0,37872.0,0.00148632]
[1643972239169,0.46321505,37874.0,37872.0,0.00148632]
[1643972239367,0.11603105,37874.0,37872.0,0.00148632]
[1643972239572,0.09403859,37873.0,37872.0,0.00148632]
[1643972239769,0.897184,37873.0,37872.0,0.00148632]
[1643972240018,0.347184,37873.0,37872.0,0.00148632]
[1643972240721,0.166026,37874.0,37872.0,0.00148632]
[1643972241018,0.21028525,37874.0,37872.0,0.00148632]
[1643972241217,0.116026,37874.0,37872.0,0.00148632]
[1643972241816,0.116026,37874.0,37872.0,0.05148632]
[1643972242415,0.166026,37874.0,37872.0,0.00148632]
[1643972242619,0.347184,37873.0,37872.0,0.00148632]
[1643972247422,0.347184,37873.0,37872.0,1.40148632]
[1643972247616,0.066026,37874.0,37872.0,1.74875732]
[1643972247818,0.066026,37874.0,37872.0,0.39875732]
[1643972248015,0.066026,37874.0,37872.0,0.05148632]
[1643972248418,0.066026,37874.0,37872.0,0.76077242]
[1643972248616,0.347184,37873.0,37872.0,0.76077242]
[1643972249417,0.347184,37873.0,37872.0,0.59087242]
[1643972249618,0.347184,37873.0,37872.0,0.59106286]
[1643972250019,0.066026,37874.0,37872.0,1.35487486]
[1643972250222,0.00097019,37878.0,37873.0,0.73863984]